[Event "*** MasterClass Titled Tuesday Blitz"]
[Site "Chess.com"]
[Date "2017.10.03"]
[Round "8"]
[White "peteseeger"]
[Black "biostatistician"]
[Result "1-0"]
[WhiteElo "2149"]
[BlackElo "2375"]
[TimeControl "180+2"]
[EndTime "14:49:18 PDT"]
[Termination "peteseeger won by resignation"]

1. e4 {[%clk 0:02:54.4]} 1... e6 {[%clk 0:02:58.9]} 2. b3 {[%clk 0:02:54.4]}
2... d5 {[%clk 0:02:56.4]} 3. Bb2 {[%clk 0:02:54.9]} 3... c5 {[%clk 0:02:57.3]}
4. exd5 {[%clk 0:02:54.1]} 4... exd5 {[%clk 0:02:58.4]} 5. Bb5+ {[%clk
0:02:54.6]} 5... Nc6 {[%clk 0:02:57.9]} 6. Nf3 {[%clk 0:02:51.8]} 6... Qe7+
{[%clk 0:02:57.2]} 7. Be2 {[%clk 0:02:41.9]} 7... Nf6 {[%clk 0:02:50]} 8. O-O
{[%clk 0:02:40.2]} 8... Qd6 {[%clk 0:02:49.1]} 9. d4 {[%clk 0:02:40.2]} 9... Be7
{[%clk 0:02:46]} 10. dxc5 {[%clk 0:02:39.9]} 10... Qxc5 {[%clk 0:02:47.9]} 11.
Nc3 {[%clk 0:02:39.1]} 11... O-O {[%clk 0:02:48.1]} 12. Nb5 {[%clk 0:02:34.2]}
12... Bg4 {[%clk 0:02:45]} 13. Nfd4 {[%clk 0:02:18.5]} 13... Bxe2 {[%clk
0:02:43.6]} 14. Qxe2 {[%clk 0:02:19.2]} 14... Rfe8 {[%clk 0:02:45]} 15. Nxc6
{[%clk 0:01:55.8]} 15... Qxc6 {[%clk 0:02:45.4]} 16. Nd4 {[%clk 0:01:54.3]}
16... Qb6 {[%clk 0:02:43.5]} 17. Qf3 {[%clk 0:01:50.6]} 17... Rac8 {[%clk
0:02:38.7]} 18. Rfe1 {[%clk 0:01:47.5]} 18... Bf8 {[%clk 0:02:31.3]} 19. h3
{[%clk 0:01:43.4]} 19... Ne4 {[%clk 0:02:30.9]} 20. c4 {[%clk 0:01:40.2]} 20...
Bb4 {[%clk 0:01:38]} 21. Re2 {[%clk 0:01:32]} 21... Qf6 {[%clk 0:00:55.5]} 22.
cxd5 {[%clk 0:01:20.7]} 22... Qxf3 {[%clk 0:00:55]} 23. gxf3 {[%clk 0:01:18.6]}
23... Nf6 {[%clk 0:00:55.7]} 24. Rxe8+ {[%clk 0:01:14]} 24... Rxe8 {[%clk
0:00:56.1]} 25. Nf5 {[%clk 0:01:12.4]} 25... Nxd5 {[%clk 0:00:50.3]} 26. Bxg7
{[%clk 0:01:08.5]} 26... Nf4 {[%clk 0:00:41.3]} 27. Rd1 {[%clk 0:00:54.2]} 27...
Nxh3+ {[%clk 0:00:38.7]} 28. Kh2 {[%clk 0:00:53.2]} 28... Nxf2 {[%clk 0:00:35]}
29. Rd7 {[%clk 0:00:52.2]} 29... a5 {[%clk 0:00:16.4]} 30. Bf6 {[%clk
0:00:51.1]} 30... Bf8 {[%clk 0:00:13.3]} 31. Kg3 {[%clk 0:00:40.7]} 31... Nd3
{[%clk 0:00:13]} 32. Rxd3 {[%clk 0:00:39.5]} 1-0

[Event "*** MasterClass Titled Tuesday Blitz"]
[Site "Chess.com"]
[Date "2017.10.03"]
[Round "8"]
[White "DiogenesSinopeus"]
[Black "Too_Stupid_To_Play"]
[Result "0-1"]
[WhiteElo "2336"]
[BlackElo "2158"]
[TimeControl "180+2"]
[EndTime "14:49:32 PDT"]
[Termination "Too_Stupid_To_Play won by resignation"]

1. d4 {[%clk 0:03:01.9]} 1... Nf6 {[%clk 0:03:00.9]} 2. c4 {[%clk 0:03:02.4]}
2... e6 {[%clk 0:03:02.4]} 3. Nc3 {[%clk 0:03:03]} 3... Bb4 {[%clk 0:03:03.9]}
4. e3 {[%clk 0:03:04.2]} 4... O-O {[%clk 0:03:04.4]} 5. Bd3 {[%clk 0:03:05.1]}
5... Re8 {[%clk 0:03:05.4]} 6. Ne2 {[%clk 0:02:59.4]} 6... d5 {[%clk 0:02:58]}
7. O-O {[%clk 0:02:58.7]} 7... c5 {[%clk 0:02:57.6]} 8. dxc5 {[%clk 0:02:56.6]}
8... Bxc5 {[%clk 0:02:51]} 9. a3 {[%clk 0:02:58]} 9... dxc4 {[%clk 0:02:41.4]}
10. Bxc4 {[%clk 0:02:59.9]} 10... a5 {[%clk 0:02:34]} 11. b3 {[%clk 0:02:53]}
11... Nbd7 {[%clk 0:02:27.2]} 12. Bb5 {[%clk 0:02:49]} 12... Qe7 {[%clk
0:02:20.6]} 13. Bb2 {[%clk 0:02:46.8]} 13... Rd8 {[%clk 0:02:21.8]} 14. Qc2
{[%clk 0:02:38.2]} 14... b6 {[%clk 0:02:18.4]} 15. Rfd1 {[%clk 0:02:25.7]} 15...
Bb7 {[%clk 0:02:18.4]} 16. Nd4 {[%clk 0:02:17.7]} 16... Rac8 {[%clk 0:02:17.1]}
17. Qe2 {[%clk 0:02:12.9]} 17... Ne5 {[%clk 0:01:48.6]} 18. f3 {[%clk 0:02:06]}
18... Ng6 {[%clk 0:01:39.4]} 19. Ba6 {[%clk 0:02:00.6]} 19... h5 {[%clk
0:01:23.5]} 20. Bxb7 {[%clk 0:01:53.8]} 20... Qxb7 {[%clk 0:01:25.4]} 21. Ncb5
{[%clk 0:01:53.7]} 21... h4 {[%clk 0:01:21.7]} 22. b4 {[%clk 0:01:45.1]} 22...
axb4 {[%clk 0:01:03.9]} 23. axb4 {[%clk 0:01:47]} 23... Bxb4 {[%clk 0:01:05.4]}
24. Ra7 {[%clk 0:01:04.1]} 24... Qd5 {[%clk 0:01:03.6]} 25. e4 {[%clk
0:01:05.6]} 25... Qg5 {[%clk 0:01:01.8]} 26. Kh1 {[%clk 0:00:34.3]} 26... Bc5
{[%clk 0:00:55.7]} 27. Bc1 {[%clk 0:00:31.5]} 27... Nf4 {[%clk 0:00:49.9]} 28.
Bxf4 {[%clk 0:00:32.5]} 28... Qxf4 {[%clk 0:00:51]} 29. Nb3 {[%clk 0:00:15.1]}
29... h3 {[%clk 0:00:17.4]} 30. g3 {[%clk 0:00:13.8]} 30... Qe3 {[%clk
0:00:18.8]} 31. Qxe3 {[%clk 0:00:11.3]} 31... Rxd1+ {[%clk 0:00:15.9]} 0-1

[Event "*** MasterClass Titled Tuesday Blitz"]
[Site "Chess.com"]
[Date "2017.10.03"]
[Round "8"]
[White "Bryakin_Mikhail"]
[Black "Tarlev_Konstantin"]
[Result "0-1"]
[WhiteElo "2503"]
[BlackElo "2614"]
[TimeControl "180+2"]
[EndTime "14:49:49 PDT"]
[Termination "Tarlev_Konstantin won by resignation"]

1. d4 {[%clk 0:02:58.2]} 1... Nf6 {[%clk 0:02:59.5]} 2. c4 {[%clk 0:02:58.9]}
2... d6 {[%clk 0:03:00.6]} 3. Nc3 {[%clk 0:02:59.3]} 3... e5 {[%clk 0:03:01.9]}
4. Nf3 {[%clk 0:02:59.6]} 4... Nbd7 {[%clk 0:03:00.7]} 5. e4 {[%clk 0:03:00.2]}
5... Be7 {[%clk 0:03:01.3]} 6. h3 {[%clk 0:02:58.8]} 6... O-O {[%clk 0:03:02.1]}
7. d5 {[%clk 0:02:59.6]} 7... Nc5 {[%clk 0:02:58.2]} 8. Bd3 {[%clk 0:03:00.6]}
8... Nxd3+ {[%clk 0:02:55.5]} 9. Qxd3 {[%clk 0:03:02.5]} 9... Nd7 {[%clk
0:02:51.4]} 10. g4 {[%clk 0:02:41.1]} 10... Nc5 {[%clk 0:02:49.1]} 11. Qe2
{[%clk 0:02:41.7]} 11... a5 {[%clk 0:02:49.3]} 12. b3 {[%clk 0:02:41.7]} 12...
c6 {[%clk 0:02:41.7]} 13. Be3 {[%clk 0:02:42.7]} 13... Qe8 {[%clk 0:02:23.9]}
14. O-O-O {[%clk 0:02:36.1]} 14... Na6 {[%clk 0:02:13.1]} 15. Kb2 {[%clk
0:02:31.5]} 15... Bd7 {[%clk 0:01:53.5]} 16. a3 {[%clk 0:01:59]} 16... Qb8
{[%clk 0:01:42.6]} 17. Rd2 {[%clk 0:01:36.5]} 17... Rc8 {[%clk 0:01:31.6]} 18.
Rhd1 {[%clk 0:01:34.8]} 18... Bf8 {[%clk 0:01:30.1]} 19. g5 {[%clk 0:01:32.6]}
19... cxd5 {[%clk 0:01:29.6]} 20. Rxd5 {[%clk 0:00:58.7]} 20... Nc7 {[%clk
0:01:22.8]} 21. R5d2 {[%clk 0:00:55]} 21... b5 {[%clk 0:01:14.8]} 22. c5 {[%clk
0:00:50.1]} 22... b4 {[%clk 0:01:09.4]} 23. Nd5 {[%clk 0:00:26.8]} 23... bxa3+
{[%clk 0:01:07.1]} 24. Ka2 {[%clk 0:00:28.2]} 24... Nxd5 {[%clk 0:01:04.6]} 25.
exd5 {[%clk 0:00:28.9]} 25... dxc5 {[%clk 0:01:04.3]} 26. Qc4 {[%clk 0:00:17.3]}
26... a4 {[%clk 0:00:54.2]} 27. bxa4 {[%clk 0:00:12.5]} 27... Rxa4 {[%clk
0:00:51.3]} 28. Qc3 {[%clk 0:00:13.9]} 28... Bd6 {[%clk 0:00:44.4]} 29. Rb1
{[%clk 0:00:14]} 29... Rb4 {[%clk 0:00:45.6]} 30. Rc1 {[%clk 0:00:12.9]} 30...
Rb2+ {[%clk 0:00:38.4]} 31. Rxb2 {[%clk 0:00:13.2]} 31... axb2 {[%clk 0:00:40]}
32. Qxb2 {[%clk 0:00:14.5]} 32... Qa8+ {[%clk 0:00:37.3]} 33. Qa3 {[%clk
0:00:11.7]} 33... Qxd5+ {[%clk 0:00:38]} 34. Qb3 {[%clk 0:00:12.6]} 34... Qa8+
{[%clk 0:00:31.5]} 35. Qa3 {[%clk 0:00:11.1]} 35... Be6+ {[%clk 0:00:29]} 36.
Kb2 {[%clk 0:00:12]} 36... Rb8+ {[%clk 0:00:30.2]} 0-1

[Event "*** MasterClass Titled Tuesday Blitz"]
[Site "Chess.com"]
[Date "2017.10.03"]
[Round "8"]
[White "tigra"]
[Black "Gordima"]
[Result "1-0"]
[WhiteElo "2664"]
[BlackElo "2580"]
[TimeControl "180+2"]
[EndTime "14:49:51 PDT"]
[Termination "tigra won by resignation"]

1. e4 {[%clk 0:03:01.9]} 1... c5 {[%clk 0:03:01]} 2. Nf3 {[%clk 0:03:03.2]} 2...
e6 {[%clk 0:03:02.4]} 3. d4 {[%clk 0:03:04.1]} 3... cxd4 {[%clk 0:03:04.3]} 4.
Nxd4 {[%clk 0:03:06]} 4... a6 {[%clk 0:03:06.2]} 5. c4 {[%clk 0:03:05]} 5... Qc7
{[%clk 0:03:03.5]} 6. Nc3 {[%clk 0:03:05.8]} 6... Nf6 {[%clk 0:03:04.7]} 7. Be2
{[%clk 0:03:06.1]} 7... b6 {[%clk 0:03:03.6]} 8. O-O {[%clk 0:03:05.8]} 8... Bb7
{[%clk 0:03:05.2]} 9. f3 {[%clk 0:03:07.2]} 9... Be7 {[%clk 0:03:05.6]} 10. Be3
{[%clk 0:03:08.3]} 10... d6 {[%clk 0:03:07.2]} 11. Rc1 {[%clk 0:03:09.8]} 11...
Nbd7 {[%clk 0:03:08.3]} 12. b4 {[%clk 0:03:07.6]} 12... Rc8 {[%clk 0:03:03.2]}
13. Nb3 {[%clk 0:03:00.8]} 13... Qb8 {[%clk 0:02:40.3]} 14. a4 {[%clk
0:03:01.1]} 14... Ba8 {[%clk 0:02:41.6]} 15. a5 {[%clk 0:03:02.1]} 15... bxa5
{[%clk 0:02:40.4]} 16. bxa5 {[%clk 0:03:01.6]} 16... Bb7 {[%clk 0:02:26.4]} 17.
Na4 {[%clk 0:02:57.1]} 17... O-O {[%clk 0:02:25.3]} 18. Nb6 {[%clk 0:02:57.2]}
18... Rcd8 {[%clk 0:02:26.7]} 19. Qc2 {[%clk 0:02:43.3]} 19... Qc7 {[%clk
0:02:17.2]} 20. c5 {[%clk 0:02:21.1]} 20... dxc5 {[%clk 0:02:13.7]} 21. Nxc5
{[%clk 0:02:22.2]} 21... Nxc5 {[%clk 0:02:11.4]} 22. Bxc5 {[%clk 0:02:23]} 22...
Bxc5+ {[%clk 0:01:50.5]} 23. Qxc5 {[%clk 0:02:23.1]} 23... Qf4 {[%clk
0:01:51.9]} 24. Rfd1 {[%clk 0:02:19.3]} 24... Rxd1+ {[%clk 0:01:36.3]} 25. Rxd1
{[%clk 0:02:19.7]} 25... h5 {[%clk 0:01:29]} 26. g3 {[%clk 0:02:18]} 26... Qh6
{[%clk 0:01:26.4]} 27. h4 {[%clk 0:02:18.4]} 27... Bxe4 {[%clk 0:01:03.5]} 28.
fxe4 {[%clk 0:02:19.2]} 28... Nxe4 {[%clk 0:01:05.4]} 29. Qa3 {[%clk 0:02:20.3]}
29... Qg6 {[%clk 0:00:46.7]} 30. Kg2 {[%clk 0:02:16.2]} 30... f5 {[%clk
0:00:46.1]} 31. Qf3 {[%clk 0:01:58.6]} 31... Rb8 {[%clk 0:00:07.6]} 32. Bd3
{[%clk 0:01:46]} 32... Nf6 {[%clk 0:00:08]} 33. Bxa6 {[%clk 0:01:45.3]} 33... e5
{[%clk 0:00:09.3]} 34. Be2 {[%clk 0:01:32.9]} 34... f4 {[%clk 0:00:09.1]} 35. a6
{[%clk 0:01:16]} 35... Rxb6 {[%clk 0:00:09.8]} 36. a7 {[%clk 0:01:16.3]} 36...
Rb2 {[%clk 0:00:04.9]} 37. a8=Q+ {[%clk 0:01:15.9]} 37... Kh7 {[%clk 0:00:05.7]}
38. Re1 {[%clk 0:01:12]} 38... Rc2 {[%clk 0:00:02.6]} 39. Kg1 {[%clk 0:01:08.3]}
39... Rb2 {[%clk 0:00:02.6]} 1-0

[Event "*** MasterClass Titled Tuesday Blitz"]
[Site "Chess.com"]
[Date "2017.10.03"]
[Round "8"]
[White "IMVoja"]
[Black "Masterbeaterr"]
[Result "1-0"]
[WhiteElo "2406"]
[BlackElo "2271"]
[TimeControl "180+2"]
[EndTime "14:49:59 PDT"]
[Termination "IMVoja won by resignation"]

1. f4 {[%clk 0:03:01.9]} 1... g6 {[%clk 0:03:01.9]} 2. Nf3 {[%clk 0:03:01.9]}
2... Bg7 {[%clk 0:03:02.4]} 3. e3 {[%clk 0:03:03]} 3... d5 {[%clk 0:03:03.2]} 4.
Be2 {[%clk 0:03:02.8]} 4... Nc6 {[%clk 0:02:58.2]} 5. O-O {[%clk 0:03:02.9]}
5... Nh6 {[%clk 0:02:58]} 6. d3 {[%clk 0:03:02.2]} 6... O-O {[%clk 0:02:58.5]}
7. e4 {[%clk 0:03:00.5]} 7... dxe4 {[%clk 0:02:56.5]} 8. dxe4 {[%clk 0:03:01.1]}
8... Bg4 {[%clk 0:02:58.1]} 9. c3 {[%clk 0:02:52.8]} 9... Qxd1 {[%clk
0:02:54.7]} 10. Rxd1 {[%clk 0:02:53.1]} 10... Rad8 {[%clk 0:02:56.6]} 11. Be3
{[%clk 0:02:52.5]} 11... Rxd1+ {[%clk 0:02:54.3]} 12. Bxd1 {[%clk 0:02:52.8]}
12... Rd8 {[%clk 0:02:56.2]} 13. Be2 {[%clk 0:02:53.9]} 13... e5 {[%clk
0:02:43.5]} 14. Na3 {[%clk 0:02:42.3]} 14... exf4 {[%clk 0:02:42]} 15. Bxf4
{[%clk 0:02:43]} 15... Bxf3 {[%clk 0:02:43.1]} 16. Bxf3 {[%clk 0:02:43.3]} 16...
Ne5 {[%clk 0:02:43.9]} 17. Nb5 {[%clk 0:02:31.8]} 17... c6 {[%clk 0:02:45.1]}
18. Nd4 {[%clk 0:02:24.2]} 18... Nxf3+ {[%clk 0:02:40.7]} 19. gxf3 {[%clk
0:02:16.5]} 19... f5 {[%clk 0:02:31.5]} 20. e5 {[%clk 0:02:12.3]} 20... Nf7
{[%clk 0:02:28.8]} 21. e6 {[%clk 0:02:06.4]} 21... Ne5 {[%clk 0:02:17.4]} 22.
Bxe5 {[%clk 0:01:21.8]} 22... Bxe5 {[%clk 0:02:17]} 23. Re1 {[%clk 0:01:20.4]}
23... Bxd4+ {[%clk 0:02:07.1]} 24. cxd4 {[%clk 0:01:20.2]} 24... Re8 {[%clk
0:02:08.3]} 25. Re3 {[%clk 0:00:45.2]} 25... Kg7 {[%clk 0:02:07.4]} 26. d5
{[%clk 0:00:40.1]} 26... cxd5 {[%clk 0:02:07.8]} 27. Rd3 {[%clk 0:00:40.5]}
27... Rxe6 {[%clk 0:02:08]} 28. Rxd5 {[%clk 0:00:42]} 28... Kf6 {[%clk
0:02:09.4]} 29. Rd7 {[%clk 0:00:42]} 29... Re7 {[%clk 0:02:10.5]} 30. Rd6+
{[%clk 0:00:43.3]} 30... Ke5 {[%clk 0:02:11]} 31. Rd2 {[%clk 0:00:44.2]} 31...
Kf4 {[%clk 0:02:11.3]} 32. Kf2 {[%clk 0:00:45]} 32... h5 {[%clk 0:02:05.9]} 33.
h4 {[%clk 0:00:44.4]} 33... Ke5 {[%clk 0:02:03.7]} 34. Rd8 {[%clk 0:00:22]}
34... Kf6 {[%clk 0:01:57.6]} 35. Rf8+ {[%clk 0:00:17.8]} 35... Ke6 {[%clk
0:01:56.2]} 36. Rg8 {[%clk 0:00:17.8]} 36... Kf7 {[%clk 0:01:56.6]} 37. Rb8
{[%clk 0:00:18.8]} 37... Rc7 {[%clk 0:01:57.3]} 38. Kg3 {[%clk 0:00:19.3]} 38...
b6 {[%clk 0:01:53.4]} 39. Kf4 {[%clk 0:00:19.8]} 39... Kf6 {[%clk 0:01:51]} 40.
Rf8+ {[%clk 0:00:20]} 40... Rf7 {[%clk 0:01:52.1]} 41. Ra8 {[%clk 0:00:17.9]}
41... Ke6 {[%clk 0:01:51.6]} 42. Re8+ {[%clk 0:00:17.8]} 42... Kd5 {[%clk
0:01:48.5]} 43. Kg5 {[%clk 0:00:16.6]} 43... Rc7 {[%clk 0:01:44.9]} 44. Kxg6
{[%clk 0:00:13.5]} 44... Rc2 {[%clk 0:01:45.9]} 45. Kxh5 {[%clk 0:00:12.6]}
45... Rxb2 {[%clk 0:01:47.2]} 46. Kg6 {[%clk 0:00:13.4]} 46... Rxa2 {[%clk
0:01:48.7]} 47. h5 {[%clk 0:00:14.6]} 47... Rh2 {[%clk 0:01:48.1]} 48. h6 {[%clk
0:00:15.4]} 48... f4 {[%clk 0:01:48.4]} 49. h7 {[%clk 0:00:15.7]} 49... b5
{[%clk 0:01:49.9]} 50. h8=Q {[%clk 0:00:16.4]} 50... Rxh8 {[%clk 0:01:51]} 51.
Rxh8 {[%clk 0:00:17.8]} 51... b4 {[%clk 0:01:52.9]} 52. Kf5 {[%clk 0:00:17.1]}
52... a5 {[%clk 0:01:52.7]} 53. Ra8 {[%clk 0:00:16.7]} 53... b3 {[%clk
0:01:52.8]} 54. Rxa5+ {[%clk 0:00:15.7]} 54... Kc4 {[%clk 0:01:54.7]} 55. Ra8
{[%clk 0:00:10.4]} 55... Kc3 {[%clk 0:01:52.8]} 56. Kxf4 {[%clk 0:00:11.1]}
56... b2 {[%clk 0:01:53.6]} 57. Rb8 {[%clk 0:00:11.5]} 1-0

[Event "*** MasterClass Titled Tuesday Blitz"]
[Site "Chess.com"]
[Date "2017.10.03"]
[Round "8"]
[White "GrigorGrigorov"]
[Black "VladimirBelous"]
[Result "1-0"]
[WhiteElo "2734"]
[BlackElo "2649"]
[TimeControl "180+2"]
[EndTime "14:50:00 PDT"]
[Termination "GrigorGrigorov won on time"]

1. d4 {[%clk 0:03:01.9]} 1... Nf6 {[%clk 0:03:00.7]} 2. c4 {[%clk 0:03:02.5]}
2... g6 {[%clk 0:03:00.8]} 3. Nf3 {[%clk 0:03:02.7]} 3... Bg7 {[%clk 0:03:00.8]}
4. g3 {[%clk 0:03:04]} 4... c5 {[%clk 0:03:02.1]} 5. Bg2 {[%clk 0:03:04.7]} 5...
Qa5+ {[%clk 0:03:02.1]} 6. Nc3 {[%clk 0:03:04.2]} 6... Ne4 {[%clk 0:03:02.3]} 7.
Bd2 {[%clk 0:03:04.8]} 7... Nxd2 {[%clk 0:03:01.1]} 8. Qxd2 {[%clk 0:03:06.7]}
8... d6 {[%clk 0:02:57]} 9. Rc1 {[%clk 0:03:02]} 9... O-O {[%clk 0:02:47.3]} 10.
O-O {[%clk 0:03:01.4]} 10... Nc6 {[%clk 0:02:38.7]} 11. e3 {[%clk 0:02:34.1]}
11... cxd4 {[%clk 0:02:28]} 12. Nxd4 {[%clk 0:02:32.2]} 12... Bd7 {[%clk
0:02:29.3]} 13. Rfd1 {[%clk 0:02:27.3]} 13... Rfc8 {[%clk 0:02:26.1]} 14. b3
{[%clk 0:02:26.2]} 14... Rab8 {[%clk 0:02:15.6]} 15. h3 {[%clk 0:02:26.6]} 15...
a6 {[%clk 0:02:03.5]} 16. Qe2 {[%clk 0:02:13.5]} 16... Qd8 {[%clk 0:01:55]} 17.
Kh2 {[%clk 0:02:11.6]} 17... e6 {[%clk 0:01:51.8]} 18. Ne4 {[%clk 0:02:00.5]}
18... Nxd4 {[%clk 0:01:48.1]} 19. exd4 {[%clk 0:02:00]} 19... Bc6 {[%clk
0:01:49.1]} 20. d5 {[%clk 0:01:43.1]} 20... exd5 {[%clk 0:01:48.8]} 21. cxd5
{[%clk 0:01:43.8]} 21... Bb5 {[%clk 0:01:49.9]} 22. Qd2 {[%clk 0:01:36.3]} 22...
h6 {[%clk 0:01:20.9]} 23. Qb4 {[%clk 0:01:30.6]} 23... f5 {[%clk 0:01:06.2]} 24.
Nd2 {[%clk 0:01:15.9]} 24... Qb6 {[%clk 0:00:49.4]} 25. a4 {[%clk 0:01:04.1]}
25... Qxf2 {[%clk 0:00:33.8]} 26. axb5 {[%clk 0:01:00.3]} 26... Be5 {[%clk
0:00:34.5]} 27. Nf1 {[%clk 0:00:55.5]} 27... f4 {[%clk 0:00:31.5]} 28. Qe4
{[%clk 0:00:49.5]} 28... Kg7 {[%clk 0:00:19.9]} 29. bxa6 {[%clk 0:00:31.6]}
29... bxa6 {[%clk 0:00:19.3]} 30. Rc6 {[%clk 0:00:31.8]} 30... fxg3+ {[%clk
0:00:20.1]} 31. Kh1 {[%clk 0:00:32.3]} 31... Rf8 {[%clk 0:00:17.4]} 32. Rc7+
{[%clk 0:00:29.8]} 32... Rf7 {[%clk 0:00:18.6]} 33. Rxf7+ {[%clk 0:00:29.8]}
33... Qxf7 {[%clk 0:00:20.5]} 34. Rc1 {[%clk 0:00:23.6]} 34... Rxb3 {[%clk
0:00:19.8]} 35. Ne3 {[%clk 0:00:19.3]} 35... h5 {[%clk 0:00:19.3]} 36. Nc4
{[%clk 0:00:19.3]} 1-0

[Event "*** MasterClass Titled Tuesday Blitz"]
[Site "Chess.com"]
[Date "2017.10.03"]
[Round "8"]
[White "GameOverBro"]
[Black "Kirill_Klukin"]
[Result "0-1"]
[WhiteElo "2306"]
[BlackElo "2483"]
[TimeControl "180+2"]
[EndTime "14:50:00 PDT"]
[Termination "Kirill_Klukin won by resignation"]

1. e4 {[%clk 0:03:01.9]} 1... c5 {[%clk 0:02:55.6]} 2. Ne2 {[%clk 0:03:02.8]}
2... Nc6 {[%clk 0:02:55.9]} 3. Nbc3 {[%clk 0:03:03.8]} 3... e5 {[%clk
0:02:54.6]} 4. Ng3 {[%clk 0:03:03.9]} 4... d6 {[%clk 0:02:52.7]} 5. Bc4 {[%clk
0:03:04.5]} 5... Be7 {[%clk 0:02:53]} 6. d3 {[%clk 0:03:03.5]} 6... Nf6 {[%clk
0:02:53.2]} 7. O-O {[%clk 0:03:02.9]} 7... Be6 {[%clk 0:02:52.8]} 8. Bb3 {[%clk
0:02:56.2]} 8... O-O {[%clk 0:02:51.4]} 9. f4 {[%clk 0:02:56.4]} 9... exf4
{[%clk 0:02:40.6]} 10. Bxf4 {[%clk 0:02:58.3]} 10... Nd4 {[%clk 0:02:39.5]} 11.
Nh5 {[%clk 0:02:46.8]} 11... Bxb3 {[%clk 0:02:30.9]} 12. axb3 {[%clk 0:02:48.7]}
12... Nxh5 {[%clk 0:02:21]} 13. Qxh5 {[%clk 0:02:47.3]} 13... Nxc2 {[%clk
0:02:21.5]} 14. Nd5 {[%clk 0:02:29.1]} 14... Nb4 {[%clk 0:02:05.3]} 15. Rf3
{[%clk 0:02:04.3]} 15... Nxd5 {[%clk 0:01:40.7]} 16. Qxd5 {[%clk 0:02:06.2]}
16... Qd7 {[%clk 0:01:34.2]} 17. Raf1 {[%clk 0:01:55.4]} 17... Qe6 {[%clk
0:01:32]} 18. Qxb7 {[%clk 0:01:51.7]} 18... Rab8 {[%clk 0:01:29.1]} 19. Qxa7
{[%clk 0:01:48.4]} 19... Rxb3 {[%clk 0:01:29.6]} 20. Bc1 {[%clk 0:01:37.7]}
20... Bd8 {[%clk 0:01:23.4]} 21. Qa2 {[%clk 0:01:15.3]} 21... c4 {[%clk
0:00:59.7]} 22. dxc4 {[%clk 0:01:04.6]} 22... Rxf3 {[%clk 0:00:59.5]} 23. gxf3
{[%clk 0:01:05.6]} 23... Bb6+ {[%clk 0:00:52.9]} 24. Kg2 {[%clk 0:01:03.8]}
24... f5 {[%clk 0:00:39]} 25. Qb3 {[%clk 0:00:47.4]} 25... Bc5 {[%clk
0:00:33.3]} 26. Qd3 {[%clk 0:00:48.1]} 26... Qg6+ {[%clk 0:00:33.5]} 27. Kh1
{[%clk 0:00:32.4]} 27... fxe4 {[%clk 0:00:33.8]} 28. Qd5+ {[%clk 0:00:27.4]}
28... Kh8 {[%clk 0:00:34.3]} 29. b4 {[%clk 0:00:21.5]} 29... exf3 {[%clk
0:00:28]} 30. Qg5 {[%clk 0:00:18.1]} 30... Qxg5 {[%clk 0:00:21.5]} 31. Bxg5
{[%clk 0:00:20]} 31... Bxb4 {[%clk 0:00:22.6]} 32. h3 {[%clk 0:00:21.2]} 32...
h6 {[%clk 0:00:22.7]} 33. Bh4 {[%clk 0:00:21.7]} 33... Bc5 {[%clk 0:00:23.6]}
34. Kh2 {[%clk 0:00:22.8]} 34... Rf4 {[%clk 0:00:25]} 35. Kg3 {[%clk 0:00:23.5]}
35... g5 {[%clk 0:00:25.9]} 0-1

[Event "*** MasterClass Titled Tuesday Blitz"]
[Site "Chess.com"]
[Date "2017.10.03"]
[Round "8"]
[White "lukas_111111"]
[Black "MaxLeto"]
[Result "1-0"]
[WhiteElo "2376"]
[BlackElo "2349"]
[TimeControl "180+2"]
[EndTime "14:50:04 PDT"]
[Termination "lukas_111111 won by resignation"]

1. e4 {[%clk 0:02:51.2]} 1... c5 {[%clk 0:02:58.9]} 2. Nf3 {[%clk 0:02:51.1]}
2... d6 {[%clk 0:02:59.9]} 3. d4 {[%clk 0:02:51.3]} 3... cxd4 {[%clk 0:03:00.8]}
4. Nxd4 {[%clk 0:02:53.2]} 4... Nf6 {[%clk 0:03:01.1]} 5. Nc3 {[%clk 0:02:54.8]}
5... a6 {[%clk 0:03:02.1]} 6. Be2 {[%clk 0:02:54]} 6... e5 {[%clk 0:02:59]} 7.
Nb3 {[%clk 0:02:55]} 7... Be6 {[%clk 0:02:58.8]} 8. Be3 {[%clk 0:02:49.1]} 8...
Be7 {[%clk 0:02:59.4]} 9. Nd5 {[%clk 0:02:42.4]} 9... Nxd5 {[%clk 0:02:59]} 10.
exd5 {[%clk 0:02:42.7]} 10... Bf5 {[%clk 0:03:00.6]} 11. Qd2 {[%clk 0:02:39]}
11... Nd7 {[%clk 0:02:56.3]} 12. Na5 {[%clk 0:02:34.2]} 12... Qc7 {[%clk
0:01:33]} 13. c4 {[%clk 0:02:33.5]} 13... O-O {[%clk 0:01:25.8]} 14. O-O {[%clk
0:02:33.5]} 14... Bg6 {[%clk 0:01:22.2]} 15. b4 {[%clk 0:02:33.1]} 15... f5
{[%clk 0:01:17.5]} 16. f4 {[%clk 0:02:28]} 16... Bf6 {[%clk 0:01:14.6]} 17. Rac1
{[%clk 0:02:17.8]} 17... b6 {[%clk 0:00:23.7]} 18. Nc6 {[%clk 0:02:13.1]} 18...
Rae8 {[%clk 0:00:24.1]} 19. a4 {[%clk 0:02:10]} 19... exf4 {[%clk 0:00:11.8]}
20. Bxf4 {[%clk 0:02:10.3]} 20... Ne5 {[%clk 0:00:05]} 21. Nd4 {[%clk 0:01:59]}
21... Qd7 {[%clk 0:00:02.3]} 22. Ne6 {[%clk 0:01:20]} 22... Rf7 {[%clk
0:00:03.5]} 23. Qa2 {[%clk 0:01:13.1]} 23... Rfe7 {[%clk 0:00:04.3]} 24. a5
{[%clk 0:01:11.1]} 24... bxa5 {[%clk 0:00:03]} 25. Qxa5 {[%clk 0:01:10.6]} 25...
Bf7 {[%clk 0:00:04.6]} 26. Qxa6 {[%clk 0:01:06]} 26... Bxe6 {[%clk 0:00:04.2]}
27. dxe6 {[%clk 0:01:06.6]} 27... Rxe6 {[%clk 0:00:05.7]} 28. Bd1 {[%clk
0:00:47.5]} 28... Nd3 {[%clk 0:00:06.6]} 29. Ba4 {[%clk 0:00:47.1]} 29... Qc8
{[%clk 0:00:04]} 30. Qxc8 {[%clk 0:00:46.6]} 30... Rxc8 {[%clk 0:00:05.7]} 31.
Bd7 {[%clk 0:00:48.3]} 31... Nxf4 {[%clk 0:00:05.2]} 32. Rxf4 {[%clk 0:00:46.2]}
32... Rce8 {[%clk 0:00:05.5]} 33. Bxe6+ {[%clk 0:00:46.2]} 33... Rxe6 {[%clk
0:00:07.4]} 34. Rxf5 {[%clk 0:00:47.4]} 34... g6 {[%clk 0:00:08.1]} 35. Rd5
{[%clk 0:00:48.1]} 35... Kg7 {[%clk 0:00:08.7]} 36. g3 {[%clk 0:00:44.4]} 36...
h5 {[%clk 0:00:07.8]} 37. c5 {[%clk 0:00:42.7]} 37... dxc5 {[%clk 0:00:09.2]}
38. bxc5 {[%clk 0:00:43.9]} 38... Rc6 {[%clk 0:00:11.1]} 39. Rd7+ {[%clk
0:00:42.2]} 39... Kh6 {[%clk 0:00:10.9]} 40. Rd6 {[%clk 0:00:43.1]} 40... Rxd6
{[%clk 0:00:11.6]} 41. cxd6 {[%clk 0:00:42.8]} 41... Kg7 {[%clk 0:00:13.5]} 42.
Rc7+ {[%clk 0:00:42.6]} 42... Kf8 {[%clk 0:00:15.1]} 43. Rc8+ {[%clk 0:00:43.1]}
43... Kf7 {[%clk 0:00:16.1]} 44. d7 {[%clk 0:00:44.3]} 1-0